fUSD/lending_fUSD_20250906
["ID","MTS","AMOUNT","RATE_DAILY","PERIOD"]
[383905954,1757171468546,-400.0,0.0003589,8]
[383905955,1757171468564,-400.0,0.0003589,8]
[383905956,1757171468581,-400.0,0.0003589,8]
[383905957,1757171468598,-771.26,0.0003589,8]
[383905958,1757171468616,-405.76331866,0.0003589,8]
[383905959,1757171468631,-400.0,0.0003589,8]
[383905960,1757171468649,-400.0,0.0003589,8]
[383905961,1757171468665,-529.03,0.0003589,8]
[383905962,1757171468681,-400.0,0.0003589,8]
[383905963,1757171468696,-400.0,0.0003589,8]
[383905964,1757171468712,-400.0,0.0003589,8]
[383905965,1757171468729,-400.0,0.0003589,8]
[383905966,1757171468743,-400.0,0.0003589,8]
[383905967,1757171468758,-400.0,0.0003589,8]
[383905968,1757171468773,-400.0,0.0003589,8]
[383905969,1757171468788,-488.2,0.0003589,8]
[383905970,1757171468803,-400.0,0.0003589,8]
[383905971,1757171468818,-400.0,0.0003589,8]
[383905972,1757171468834,-404.92089818,0.0003589,8]
[383905973,1757171468849,-400.0,0.0003589,8]
[383905974,1757171468864,-400.0,0.0003589,8]
[383905975,1757171468879,-400.0,0.0003589,8]
[383905976,1757171468893,-400.0,0.0003589,8]
[383905977,1757171468908,-400.0,0.0003589,8]
[383905978,1757171468927,-400.0,0.0003589,8]
[383905979,1757171468951,-514.33,0.0003589,8]
[383905980,1757171468967,-400.0,0.0003589,8]
[383905981,1757171468983,-400.0,0.0003589,8]
[383905982,1757171468997,-400.63973411,0.0003589,8]
[383905983,1757171469012,-400.0,0.0003589,8]
[383905984,1757171469028,-446.5,0.0003589,8]
[383905985,1757171469045,-957.34,0.0003589,8]
[383905986,1757171469060,-400.0,0.0003589,8]
[383905987,1757171469075,-2661.89,0.0003589,8]
[383905988,1757171469091,-400.0,0.0003589,8]
[383905989,1757171469107,-1000.0,0.0003589,8]
[383905990,1757171469122,-400.0,0.0003589,8]
[383905991,1757171469138,-400.0,0.0003589,8]
[383905992,1757171469154,-400.0,0.0003589,8]
[383905993,1757171469170,-400.0,0.0003589,8]
[383905994,1757171469185,-400.0,0.0003589,8]
[383905995,1757171469200,-443.95,0.0003589,8]
[383905996,1757171469216,-400.0,0.0003589,8]
[383905997,1757171469232,-400.0,0.0003589,8]
[383905998,1757171469248,-400.0,0.0003589,8]
[383905999,1757171469262,-400.0,0.0003589,8]
[383906000,1757171469283,-522.75,0.0003589,8]
[383906001,1757171469300,-1080.71,0.0003589,8]
[383906002,1757171469317,-400.0,0.0003589,8]
[383906003,1757171469334,-400.0,0.0003589,8]
[383906004,1757171469350,-400.0,0.0003589,8]
[383906005,1757171469366,-631.51,0.0003589,8]
[383906006,1757171469381,-400.0,0.0003589,8]
[383906007,1757171469397,-423.77,0.0003589,8]
[383906008,1757171469413,-665.38,0.0003589,8]
[383906009,1757171469429,-401.24013924,0.0003589,8]
[383906010,1757171469445,-438.86,0.0003589,8]
[383906011,1757171469461,-400.0,0.0003589,8]
[383906012,1757171469477,-400.0,0.0003589,8]
[383906013,1757171469492,-400.0,0.0003589,8]
[383906014,1757171469507,-400.0,0.0003589,8]
[383906015,1757171469522,-400.0,0.0003589,8]
[383906016,1757171469539,-400.0,0.0003589,8]
[383906017,1757171469555,-400.0,0.0003589,8]
[383906018,1757171469570,-807.77,0.0003589,8]
[383906019,1757171469585,-400.0,0.0003589,8]
[383906020,1757171469600,-400.0,0.0003589,8]
[383906021,1757171469615,-1470.18,0.0003589,8]
[383906022,1757171469873,-400.0,0.0003589,8]
[383906023,1757171469906,-294.30149349,0.0003589,8]
[383906024,1757171469916,-400.0,0.0003589,8]
[383906025,1757171469926,-400.0,0.0003589,8]
[383906026,1757171469935,-481.87,0.0003589,8]
[383906027,1757171469945,-486.75,0.0003589,8]
[383906028,1757171469955,-4237.61,0.0003589,8]
[383906029,1757171469966,-405.18998345,0.0003589,8]
[383906030,1757171469975,-400.0,0.0003589,8]
[383906031,1757171469984,-400.0,0.0003589,8]
[383906032,1757171469994,-1400.7,0.0003589,8]
[383906033,1757171470005,-400.0,0.0003589,8]
[383906034,1757171470015,-400.0,0.0003589,8]
[383906035,1757171470025,-400.0,0.0003589,8]
[383906036,1757171470035,-666.63,0.0003589,8]
[383906037,1757171470045,-400.0,0.0003589,8]
[383906038,1757171470058,-400.0,0.0003589,8]
[383906039,1757171470067,-3913.69,0.0003589,8]
[383906040,1757171470079,-400.0,0.0003589,8]
[383906041,1757171470088,-400.0,0.0003589,8]
[383906042,1757171470098,-400.0,0.0003589,8]
[383906043,1757171470108,-558.61,0.0003589,8]
[383906044,1757171470118,-400.77971062,0.0003589,8]
[383906045,1757171470128,-857.87,0.0003589,8]
[383906046,1757171470138,-400.0,0.0003589,8]
[383906047,1757171470148,-400.0,0.0003589,8]
[383906048,1757171470158,-491.22,0.0003589,8]
[383906049,1757171470168,-523.32,0.0003589,8]
[383906050,1757171470178,-1022.53,0.0003589,8]
[383906051,1757171470188,-400.0,0.0003589,8]
[383906052,1757171470198,-400.0,0.0003589,8]
[383906053,1757171470207,-400.0,0.0003589,8]
[383906054,1757171470216,-440.83,0.0003589,8]
[383906055,1757171470226,-400.0,0.0003589,8]
[383906056,1757171470236,-409.44710111,0.0003589,8]
[383906057,1757171470246,-527.91,0.0003589,8]
[383906058,1757171470256,-613.93,0.0003589,8]
[383906059,1757171470265,-400.0,0.0003589,8]
[383906060,1757171470275,-400.0,0.0003589,8]
[383906061,1757171470284,-400.0,0.0003589,8]
[383906062,1757171470294,-400.0,0.0003589,8]
[383906063,1757171470304,-400.0,0.0003589,8]
[383906064,1757171470313,-400.0,0.0003589,8]
[383906065,1757171470322,-819.34,0.0003589,8]
[383906066,1757171470332,-400.0,0.0003589,8]
[383906067,1757171470341,-686.88,0.0003589,8]
[383906068,1757171470351,-400.0,0.0003589,8]
[383906069,1757171470362,-400.0,0.0003589,8]
[383906070,1757171470372,-400.0,0.0003589,8]
[383906071,1757171470382,-409.16648409,0.0003589,8]
[383906072,1757171470391,-454.21,0.0003589,8]
[383906073,1757171470400,-400.0,0.0003589,8]
[383906074,1757171470410,-677.45,0.0003589,8]
[383906075,1757171470421,-525.22,0.0003589,8]
[383906076,1757171470430,-400.0,0.0003589,8]
[383906077,1757171470440,-500.62,0.0003589,8]
[383906078,1757171470449,-400.0,0.0003589,8]
[383906079,1757171470459,-400.0,0.0003589,8]
[383906080,1757171470468,-400.0,0.0003589,8]
[383906081,1757171470478,-400.0,0.0003589,8]
[383906082,1757171470487,-400.0,0.0003589,8]
[383906083,1757171470497,-400.0,0.0003589,8]
[383906084,1757171470507,-400.0,0.0003589,8]
[383906085,1757171470516,-400.0,0.0003589,8]
[383906086,1757171470525,-400.0,0.0003589,7]
[383906087,1757171470537,-400.0,0.0003589,8]
[383906088,1757171470547,-400.0,0.0003589,8]
[383906089,1757171470556,-400.0,0.0003589,8]
[383906090,1757171470566,-400.0,0.0003589,8]
[383906091,1757171470576,-424.76,0.0003589,8]
[383906092,1757171470585,-400.0,0.0003589,8]
[383906093,1757171470595,-666.85,0.0003589,8]
[383906094,1757171470604,-400.0,0.0003589,8]
[383906095,1757171470614,-424.8,0.0003589,8]
[383906096,1757171470623,-400.0,0.0003589,8]
[383906097,1757171470634,-400.0,0.0003589,8]
[383906098,1757171470643,-400.0,0.0003589,8]
[383906099,1757171470654,-400.0,0.0003589,8]
[383906100,1757171470663,-534.96,0.0003589,8]
[383906101,1757171470673,-400.0,0.0003589,8]
[383906102,1757171470683,-400.0,0.0003589,8]
[383906103,1757171470693,-400.0,0.0003589,8]
[383906104,1757171470703,-400.0,0.0003589,8]
[383906105,1757171470714,-462.99232482,0.0003589,8]
[383906106,1757171470724,-1573.52,0.0003589,8]
[383906107,1757171470735,-400.0,0.0003589,8]
[383906108,1757171470744,-2301.18,0.0003589,8]
[383906109,1757171470754,-400.0,0.0003589,8]
[383906110,1757171470764,-400.0,0.0003589,8]
[383906111,1757171470776,-400.0,0.0003589,8]
[383906112,1757171470785,-400.0,0.0003589,8]
[383906113,1757171470795,-400.0,0.0003589,8]
[383906114,1757171470805,-994.18,0.0003589,8]
[383906115,1757171470815,-462.8161176,0.0003589,8]
[383906116,1757171470825,-400.0,0.0003589,8]
[383906117,1757171470835,-400.0,0.0003589,8]
[383906118,1757171470845,-400.0,0.0003589,8]
[383906119,1757171470855,-1335.37,0.0003589,8]
[383906120,1757171470865,-400.0,0.0003589,8]
[383906121,1757171470875,-400.0,0.0003589,8]
[383906122,1757171470885,-400.0,0.0003589,8]
[383906123,1757171470894,-400.0,0.0003589,8]
[383906124,1757171470905,-694.9,0.0003589,8]
[383906125,1757171470915,-200.0,0.0003589,8]
[383906126,1757171470925,-400.0,0.0003589,8]
[383906127,1757171470934,-440.97,0.0003589,8]
[383906128,1757171470945,-400.0,0.0003589,8]
[383906129,1757171470954,-448.05,0.0003589,8]
[383906130,1757171470966,-400.0,0.0003589,8]
[383906131,1757171470976,-429.02,0.0003589,8]
[383906132,1757171470986,-400.0,0.0003589,8]
[383906133,1757171470995,-1031.45,0.0003589,8]
[383906134,1757171471005,-400.0,0.0003589,8]
[383906135,1757171471015,-400.0,0.0003589,8]
[383906136,1757171471025,-400.0,0.0003589,8]
[383906137,1757171471034,-400.0,0.0003589,8]
[383906138,1757171471043,-493.53,0.0003589,8]
[383906139,1757171471053,-2599.28,0.0003589,8]
[383906140,1757171471063,-525.12,0.0003589,8]
[383906141,1757171471073,-400.0,0.0003589,8]
[383906142,1757171471082,-518.48,0.0003589,8]
[383906143,1757171471092,-400.0,0.0003589,8]
[383906144,1757171471101,-400.0,0.0003589,8]
[383906145,1757171471111,-400.0,0.0003589,8]
[383906146,1757171471121,-400.0,0.0003589,8]
[383906147,1757171471131,-400.0,0.0003589,8]
[383906148,1757171471140,-585.16,0.0003589,8]
[383906149,1757171471150,-400.0,0.0003589,8]
[383906150,1757171471159,-400.0,0.0003589,8]
[383906151,1757171471169,-906.65,0.0003589,8]
[383906152,1757171471179,-400.0,0.0003589,8]
[383906153,1757171471188,-403.20405483,0.0003589,8]
[383906154,1757171471198,-400.0,0.0003589,8]
[383906155,1757171471208,-400.0,0.0003589,8]
[383906156,1757171471218,-400.0,0.0003589,8]
[383906157,1757171471228,-400.0,0.0003589,8]
[383906158,1757171471238,-400.0,0.0003589,8]
[383906159,1757171471248,-400.0,0.0003589,8]
[383906160,1757171471258,-400.0,0.0003589,8]
[383906161,1757171471268,-4402.47,0.0003589,8]
[383906162,1757171471279,-400.0,0.0003589,8]
[383906163,1757171471288,-1010.34,0.0003589,8]
[383906164,1757171471298,-400.0,0.0003589,8]
[383906165,1757171471308,-504.89,0.0003589,8]
[383906166,1757171471317,-400.0,0.0003589,8]
[383906167,1757171471327,-400.0,0.0003589,8]
[383906168,1757171471337,-400.0,0.0003589,8]
[383906169,1757171471347,-400.0,0.0003589,8]
[383906170,1757171471357,-400.0,0.0003589,8]
[383906171,1757171471367,-8768.83,0.0003589,8]
[383906172,1757171471377,-400.0,0.0003589,8]
[383906173,1757171471386,-400.0,0.0003589,8]
[383906174,1757171471396,-400.0,0.0003589,8]
[383906175,1757171471406,-400.0,0.0003589,8]
[383906176,1757171471416,-400.0,0.0003589,8]
[383906177,1757171471427,-1577.02,0.0003589,8]
[383906178,1757171471436,-400.0,0.0003589,8]
[383906179,1757171471447,-2234.93,0.0003589,8]
[383906180,1757171471457,-516.56,0.0003589,8]
[383906181,1757171471467,-400.0,0.0003589,8]
[383906182,1757171471477,-481.48,0.0003589,8]
[383906183,1757171471487,-400.0,0.0003589,8]
[383906184,1757171471496,-400.0,0.0003589,8]
[383906185,1757171471506,-400.0,0.0003589,8]
[383906186,1757171471515,-402.84,0.0003589,8]
[383906187,1757171471525,-1194.33,0.0003589,8]
[383906188,1757171471539,-400.0,0.0003589,8]
[383906189,1757171471548,-400.0,0.0003589,8]
[383906190,1757171471559,-400.0,0.0003589,8]
[383906191,1757171471569,-400.0,0.0003589,8]
[383906192,1757171471581,-400.0,0.0003589,8]
[383906193,1757171471591,-819.48,0.0003589,8]
[383906194,1757171471600,-400.0,0.0003589,8]
[383906195,1757171471610,-400.0,0.0003589,8]
[383906196,1757171471619,-588.21,0.0003589,8]
[383906197,1757171471629,-400.0,0.0003589,8]
[383906198,1757171471639,-400.0,0.0003589,8]
[383906199,1757171471648,-400.0,0.0003589,8]
[383906200,1757171471658,-400.0,0.0003589,8]
[383906201,1757171471667,-400.0,0.0003589,8]
[383906202,1757171471677,-436.59,0.0003589,8]
[383906203,1757171471686,-2640.14,0.0003589,8]
[383906204,1757171471696,-400.0,0.0003589,8]
[383906205,1757171471706,-400.0,0.0003589,8]
[383906206,1757171471716,-414.87,0.0003589,8]
[383906207,1757171471725,-400.0,0.0003589,8]
[383906208,1757171471735,-1565.2,0.0003589,8]
[383906209,1757171471745,-400.0,0.0003589,8]
[383906210,1757171471755,-400.0,0.0003589,8]
[383906211,1757171471765,-400.0,0.0003589,8]
[383906212,1757171471775,-400.0,0.0003589,8]
[383906213,1757171471785,-400.0,0.0003589,8]
[383906214,1757171471794,-1250.41,0.0003589,8]
[383906215,1757171471804,-400.0,0.0003589,8]
[383906216,1757171471815,-400.0,0.0003589,8]
[383906217,1757171471825,-400.0,0.0003589,8]
[383906218,1757171471834,-1545.26,0.0003589,8]
[383906219,1757171471843,-518.55,0.0003589,8]
[383906220,1757171471853,-400.0,0.0003589,8]
[383906221,1757171471863,-554.77,0.0003589,8]
[383906222,1757171471872,-400.0,0.0003589,8]
[383906223,1757171471881,-300.0,0.0003589,8]
[383906224,1757171471890,-500.65,0.0003589,8]
[383906225,1757171471900,-756.41,0.0003589,8]
[383906226,1757171471910,-719.36,0.0003589,8]
[383906227,1757171471919,-895.2,0.0003589,8]
[383906228,1757171471929,-472.88,0.0003589,8]
[383906229,1757171471938,-400.0,0.0003589,8]
[383906230,1757171471947,-400.0,0.0003589,8]
[383906231,1757171471957,-400.0,0.0003589,8]
[383906232,1757171471966,-400.0,0.0003589,8]
[383906233,1757171471975,-400.0,0.0003589,8]
[383906234,1757171471986,-724.14,0.0003589,8]
[383906235,1757171471996,-400.0,0.0003589,8]
[383906236,1757171472005,-400.0,0.0003589,8]
[383906237,1757171472015,-402.31304874,0.0003589,8]
[383906238,1757171472025,-400.0,0.0003589,8]
[383906239,1757171472035,-400.0,0.0003589,8]
[383906240,1757171472044,-400.0,0.0003589,8]
[383906241,1757171472054,-400.0,0.0003589,8]
[383906242,1757171472064,-3048.68,0.0003589,8]
[383906243,1757171472073,-400.0,0.0003589,8]
[383906244,1757171472083,-1135.42,0.0003589,8]
[383906245,1757171472092,-400.0,0.0003589,8]
[383906246,1757171472103,-400.0,0.0003589,8]
[383906247,1757171472113,-400.0,0.0003589,8]
[383906248,1757171472122,-400.0,0.0003589,8]
[383906249,1757171472132,-400.0,0.0003589,8]
[383906250,1757171472141,-643.29,0.0003589,8]
[383906251,1757171472151,-515.80863889,0.0003589,8]
[383906252,1757171472161,-523.6,0.0003589,8]
[383906253,1757171472171,-400.0,0.0003589,8]
[383906254,1757171472180,-1226.38,0.0003589,8]
[383906255,1757171472190,-638.06,0.0003589,8]
[383906256,1757171472200,-3125.17,0.0003589,8]
[383906257,1757171472210,-644.86,0.0003589,8]
[383906258,1757171472220,-400.0,0.0003589,8]
[383906259,1757171472231,-421.77,0.0003589,8]
[383906260,1757171472242,-858.9,0.0003589,8]
[383906261,1757171472252,-400.0,0.0003589,8]
[383906262,1757171472262,-400.0,0.0003589,8]
[383906263,1757171472272,-400.0,0.0003589,8]
[383906264,1757171472281,-400.0,0.0003589,8]
[383906265,1757171472291,-620.0,0.0003589,8]
[383906266,1757171472300,-400.0,0.0003589,8]
[383906267,1757171472310,-400.0,0.0003589,8]
[383906268,1757171472320,-400.0,0.0003589,8]
[383906269,1757171472329,-510.75,0.0003589,8]
[383906270,1757171472339,-402.55352414,0.0003589,8]
[383906271,1757171472349,-400.0,0.0003589,8]
[383906272,1757171472358,-1106.27,0.0003589,8]
[383906273,1757171472367,-414.13232083,0.0003589,8]
[383906274,1757171472377,-400.0,0.0003589,8]
[383906275,1757171472387,-500.0,0.0003589,2]
[383906276,1757171472397,-403.39075191,0.0003589,8]
[383906277,1757171472407,-400.0,0.0003589,8]
[383906278,1757171472417,-400.0,0.0003589,8]
[383906279,1757171472426,-400.0,0.0003589,8]
[383906280,1757171472435,-623.2,0.0003589,8]
[383906281,1757171472444,-400.0,0.0003589,8]
[383906282,1757171472452,-524.19,0.0003589,8]
[383906283,1757171472462,-400.0,0.0003589,8]
[383906284,1757171472471,-400.0,0.0003589,8]
[383906285,1757171472480,-464.85,0.0003589,8]
[383906286,1757171472490,-492.97,0.0003589,8]
[383906287,1757171472499,-1992.17,0.0003589,8]
[383906288,1757171472508,-400.0,0.0003589,8]
[383906289,1757171472518,-400.0,0.0003589,8]
[383906290,1757171472528,-400.0,0.0003589,8]
[383906291,1757171472540,-400.0,0.0003589,8]
[383906292,1757171472549,-400.0,0.0003589,8]
[383906293,1757171472559,-2818.6,0.0003589,8]
[383906294,1757171472568,-1314.68,0.0003589,8]
[383906295,1757171472580,-712.7,0.0003589,8]
[383906296,1757171472590,-992.23,0.0003589,120]
[383906297,1757171472599,-400.0,0.0003589,8]
[383906298,1757171472609,-400.0,0.0003589,8]
[383906299,1757171472619,-400.0,0.0003589,8]
[383906300,1757171472630,-995.66,0.0003589,8]
[383906301,1757171472639,-400.0,0.0003589,8]
[383906302,1757171472649,-400.0,0.0003589,8]
[383906303,1757171472658,-920.55,0.0003589,8]
[383906304,1757171472667,-400.0,0.0003589,8]
[383906305,1757171472676,-400.0,0.0003589,8]
[383906306,1757171472685,-973.39,0.0003589,8]
[383906307,1757171472695,-400.0,0.0003589,8]
[383906308,1757171472706,-1567.79,0.0003589,8]
[383906309,1757171472715,-400.0,0.0003589,8]
[383906310,1757171472726,-874.07,0.0003589,8]
[383906311,1757171472736,-400.0,0.0003589,8]
[383906312,1757171472746,-427.97,0.0003589,8]
[383906313,1757171472756,-1126.85,0.0003589,8]
[383906314,1757171472766,-400.0,0.0003589,8]
[383906315,1757171472775,-753.77,0.0003589,8]
[383906316,1757171472784,-1185.35,0.0003589,8]
[383906317,1757171472792,-605.22,0.0003589,8]
[383906318,1757171472801,-405.52444996,0.0003589,8]
[383906319,1757171472811,-400.0,0.0003589,8]
[383906320,1757171472821,-1629.61,0.0003589,8]
[383906321,1757171472831,-400.0,0.0003589,8]
[383906322,1757171472840,-400.0,0.0003589,8]
[383906323,1757171472847,-400.0,0.0003589,8]
[383906324,1757171472857,-400.0,0.0003589,8]
[383906325,1757171472867,-895.51,0.0003589,8]
[383906326,1757171472876,-502.22771245,0.0003589,8]
[383906327,1757171472886,-400.0,0.0003589,8]
[383906328,1757171472896,-400.0,0.0003589,8]
[383906329,1757171472907,-400.0,0.0003589,8]
[383906330,1757171472917,-1333.57,0.0003589,8]
[383906331,1757171472926,-400.0,0.0003589,8]
[383906332,1757171472936,-500.0,0.0003589,8]
[383906333,1757171472946,-400.0,0.0003589,8]
[383906334,1757171472956,-400.0,0.0003589,8]
[383906335,1757171472966,-581.1,0.0003589,8]
[383906336,1757171472976,-3538.68,0.0003589,8]
[383906337,1757171472986,-400.0,0.0003589,8]
[383906338,1757171472995,-615.33,0.0003589,8]
[383906339,1757171473005,-1458.45,0.0003589,8]
[383906340,1757171473014,-400.0,0.0003589,8]
[383906341,1757171473024,-400.0,0.0003589,8]
[383906342,1757171473033,-400.0,0.0003589,8]
[383906343,1757171473043,-400.0,0.0003589,8]
[383906344,1757171473053,-400.0,0.0003589,8]
[383906345,1757171473063,-400.0,0.0003589,8]
[383906346,1757171473072,-400.0,0.0003589,8]
[383906347,1757171473083,-400.0,0.0003589,8]
[383906348,1757171473284,-400.0,0.0003589,8]
[383906349,1757171473294,-265.31666565,0.0003589,8]
[383906350,1757171473304,-400.0,0.0003589,8]
[383906351,1757171473313,-400.0,0.0003589,8]
[383906352,1757171473323,-400.0,0.0003589,8]
[383906353,1757171473334,-400.0,0.0003589,8]
[383906354,1757171473344,-400.0,0.0003589,8]
[383906355,1757171473354,-400.0,0.0003589,8]
[383906356,1757171473363,-400.0,0.0003589,8]
[383906357,1757171473372,-401.69700787,0.0003589,8]
[383906358,1757171473382,-400.0,0.0003589,8]
[383906359,1757171473391,-727.4,0.0003589,8]
[383906360,1757171473401,-400.0,0.0003589,8]
[383906361,1757171473411,-1006.32,0.0003589,8]
[383906362,1757171473421,-816.22,0.0003589,8]
[383906363,1757171473431,-405.41735759,0.0003589,8]
[383906364,1757171473440,-400.0,0.0003589,8]
[383906365,1757171473450,-503.6455668,0.0003589,8]
[383906366,1757171473459,-435.85,0.0003589,8]
[383906367,1757171473469,-400.0,0.0003589,2]
[383906368,1757171473478,-455.94,0.0003589,8]
[383906369,1757171473488,-400.0,0.0003589,8]
[383906370,1757171473497,-400.0,0.0003589,8]
[383906371,1757171473507,-457.05,0.0003589,8]
[383906372,1757171473516,-400.0,0.0003589,8]
[383906373,1757171473526,-400.0,0.0003589,8]
[383906374,1757171473541,-400.0,0.0003589,8]
[383906375,1757171473551,-400.0,0.0003589,8]
[383906376,1757171473561,-400.0,0.0003589,8]
[383906377,1757171473571,-2331.2,0.0003589,8]
[383906378,1757171473583,-400.0,0.0003589,8]
[383906379,1757171473593,-400.0,0.0003589,8]
[383906380,1757171473602,-400.0,0.0003589,8]
[383906381,1757171473613,-667.62,0.0003589,8]
[383906382,1757171473624,-400.0,0.0003589,8]
[383906383,1757171473634,-477.75,0.0003589,8]
[383906384,1757171473644,-400.0,0.0003589,2]
[383906385,1757171473654,-400.0,0.0003589,8]
[383906386,1757171473664,-400.0,0.0003589,8]
[383906387,1757171473674,-1449.04,0.0003589,8]
[383906388,1757171473684,-406.40150371,0.0003589,8]
[383906389,1757171473694,-400.0,0.0003589,8]
[383906390,1757171473704,-400.0,0.0003589,8]
[383906391,1757171473715,-400.0,0.0003589,8]
[383906392,1757171473724,-400.0,0.0003589,8]
[383906393,1757171473734,-400.0,0.0003589,8]
[383906394,1757171473745,-400.0,0.0003589,8]
[383906395,1757171473755,-400.0,0.0003589,8]
[383906396,1757171473765,-400.0,0.0003589,8]
[383906397,1757171473775,-400.0,0.0003589,8]
[383906398,1757171473784,-400.0,0.0003589,8]
[383906399,1757171473793,-400.0,0.0003589,8]
[383906400,1757171473803,-400.0,0.0003589,8]
[383906401,1757171473813,-468.0,0.0003589,8]
[383906402,1757171473822,-1182.16,0.0003589,8]
[383906403,1757171473834,-400.0,0.0003589,8]
[383906404,1757171473845,-538.36,0.0003589,8]
[383906405,1757171473855,-400.0,0.0003589,8]
[383906406,1757171473865,-400.0,0.0003589,8]
[383906407,1757171473874,-516.63,0.0003589,8]
[383906408,1757171473885,-615.32,0.0003589,8]
[383906409,1757171473895,-400.0,0.0003589,8]
[383906410,1757171473905,-400.0,0.0003589,8]
[383906411,1757171473915,-400.0,0.0003589,8]
[383906412,1757171473925,-412.98,0.0003589,8]
[383906413,1757171473935,-400.0,0.0003589,8]
[383906414,1757171473945,-339.23160696,0.0003589,8]
[383906415,1757171473955,-400.0,0.0003589,8]
[383906416,1757171473965,-400.0,0.0003589,8]
[383906417,1757171473974,-2132.96,0.0003589,8]
[383906418,1757171473984,-400.0,0.0003589,8]
[383906419,1757171473994,-400.0,0.0003589,8]
[383906420,1757171474003,-2499.57,0.0003589,8]
[383906421,1757171474014,-400.0,0.0003589,8]
[383906422,1757171474023,-400.0,0.0003589,8]
[383906423,1757171474033,-400.0,0.0003589,8]
[383906424,1757171474043,-400.0,0.0003589,8]
[383906425,1757171474053,-400.0,0.0003589,8]
[383906426,1757171474064,-482.21,0.0003589,8]
[383906427,1757171474074,-400.0,0.0003589,8]
[383906428,1757171474085,-424.36,0.0003589,8]
[383906429,1757171474096,-439.47,0.0003589,8]
[383906430,1757171474106,-400.0,0.0003589,8]
[383906431,1757171474116,-400.0,0.0003589,8]
[383906432,1757171474126,-489.75,0.0003589,8]
[383906433,1757171474136,-2235.5,0.0003589,8]
[383906434,1757171474146,-400.0,0.0003589,8]
[383906435,1757171474156,-400.0,0.0003589,8]
[383906436,1757171474166,-400.0,0.0003589,8]
[383906437,1757171474176,-1000.0,0.0003589,8]
[383906438,1757171474185,-400.0,0.0003589,8]
[383906439,1757171474195,-457.6,0.0003589,8]
[383906440,1757171474205,-400.0,0.0003589,8]
[383906441,1757171474215,-400.0,0.0003589,8]
[383906442,1757171474225,-1925.38,0.0003589,8]
[383906443,1757171474235,-404.69702003,0.0003589,8]
[383906444,1757171474245,-2649.97,0.0003589,8]
[383906445,1757171474255,-400.0,0.0003589,8]
[383906446,1757171474265,-414.80878072,0.0003589,8]
[383906447,1757171474275,-501.4,0.0003589,8]
[383906448,1757171474285,-400.0,0.0003589,8]
[383906449,1757171474295,-2294.59,0.0003589,8]
[383906450,1757171474304,-400.0,0.0003589,8]
[383906451,1757171474314,-400.0,0.0003589,8]
[383906452,1757171474324,-438.01,0.0003589,8]
[383906453,1757171474337,-404.11126648,0.0003589,2]